bitfinex-derivatives/quotes_SOLF0:USTF0_20250311
["timestamp","ask_amount","ask_price","bid_price","bid_amount"]
[1741681099292,281.0714727,123.45,123.37,32.74]
[1741681099598,194.0,123.51,123.39,13.5914727]
[1741681099599,13.5914727,123.49,123.39,13.5914727]
[1741681099796,21.6908727,123.49,123.46,8.1011]
[1741681099995,0.05660732,123.45,123.43,32.74]
[1741681100190,313.8114727,123.51,123.46,0.05602501]
[1741681100394,13.5914727,123.49,123.44,2.3841]
[1741681100694,13.5914727,123.47,123.43,32.74]
[1741681101000,13.5914727,123.45,123.41,2.1973]
[1741681101397,0.05594368,123.44,123.42,0.06164983]
[1741681102000,13.5914727,123.43,123.42,0.06164983]
[1741681102200,0.05594368,123.44,123.42,0.06164983]
[1741681102402,13.5914727,123.43,123.42,0.06164983]
[1741681102598,13.5914727,123.43,123.42,0.00504251]
[1741681104101,21.6946727,123.43,123.42,0.00504251]
[1741681104290,13.5914727,123.43,123.42,0.00504251]
[1741681104804,21.6946727,123.43,123.42,0.00504251]
[1741681104996,13.5914727,123.43,123.42,0.00504251]
[1741681105502,21.6946727,123.43,123.42,0.00504251]
[1741681106704,8.1056,123.4,123.38,2.1973]
[1741681107300,13.5914727,123.41,123.38,2.1973]
[1741681107505,8.1058,123.39,123.38,2.1973]
[1741681107700,8.1058,123.39,123.37,35.1143]
[1741681107701,13.5914727,123.39,123.37,0.05204907]
[1741681107905,8.1065,123.38,123.37,0.05204907]
[1741681108105,8.1065,123.38,123.37,4.907e-05]
[1741681110505,13.5914727,123.39,123.28,13.5914727]
[1741681110712,13.5914727,123.35,123.29,37.4643]
[1741681111808,0.05860673,123.33,123.31,0.05916629]
[1741681114111,0.05860673,123.33,123.31,8.17016629]
[1741681114712,46.3314727,123.37,123.31,0.05916629]
[1741681115009,13.5914727,123.37,123.32,32.74]
[1741681115206,13.5914727,123.41,123.32,32.74]
[1741681115412,8.1064,123.39,123.35,8.1081]
[1741681115606,13.5914727,123.41,123.35,8.1081]
[1741681115607,13.5914727,123.41,123.35,32.74]
[1741681115810,280.9914727,123.43,123.36,2.365]
[1741681116012,280.9914727,123.43,123.37,0.060251]
[1741681116206,13.64815511,123.41,123.37,0.060251]
[1741681116410,8.1065,123.38,123.37,0.060251]
[1741681116807,13.5914727,123.39,123.37,0.060251]
[1741681117209,21.6976727,123.39,123.37,0.060251]
[1741681117401,13.5914727,123.39,123.37,0.060251]
[1741681117602,8.1074,123.37,123.31,10.4758]
[1741681117812,13.5914727,123.35,123.31,2.365]
[1741681118909,0.0544398,123.34,123.32,0.05659417]
[1741681119300,0.05911919,123.34,123.33,8.1094]
[1741681119504,0.05911919,123.34,123.32,0.05659417]
[1741681120510,0.05911919,123.34,123.33,8.1097]
[1741681120706,0.05911919,123.34,123.32,0.05659417]
[1741681121309,0.05911919,123.34,123.33,8.1097]
[1741681122214,13.5914727,123.39,123.35,8.1082]
[1741681122806,13.5914727,123.39,123.33,32.74]
[1741681123314,0.05445231,123.37,123.35,0.05867159]
[1741681124013,300.14,123.43,123.36,32.74]
[1741681124014,280.9914727,123.43,123.36,32.74]
[1741681124417,267.4,123.43,123.37,2.3705]
[1741681125414,0.06118619,123.41,123.4,8.1046]
[1741681125612,267.4,123.43,123.39,32.79296259]
[1741681125816,280.9914727,123.43,123.39,0.05296259]
[1741681126016,8.1042,123.42,123.39,0.05296259]
[1741681126215,280.9914727,123.43,123.39,0.05296259]
[1741681126216,267.4,123.43,123.39,0.05296259]
[1741681127114,275.5034,123.43,123.39,8.15856259]
[1741681127311,267.4,123.43,123.39,0.05296259]
[1741681127616,275.5033,123.43,123.4,8.1048]
[1741681127811,267.4,123.43,123.39,0.05296259]
[1741681128013,267.44,123.49,123.39,0.05296259]
[1741681128219,300.18,123.49,123.38,32.74]
[1741681128415,21.7892944,123.48,123.43,0.05886339]
[1741681128817,8.1024,123.45,123.43,0.05886339]
[1741681129021,21.7892944,123.48,123.43,0.05886339]
[1741681129213,8.1016,123.46,123.43,0.05886339]
[1741681129415,21.7892944,123.48,123.43,0.05886339]
[1741681130318,8.1023,123.45,123.43,0.05886339]
[1741681130615,21.7892944,123.48,123.43,0.05886339]
[1741681132114,8.1025,123.45,123.43,0.05886339]
[1741681132515,21.7892944,123.48,123.43,0.05886339]
[1741681132717,300.18,123.49,123.43,0.05886339]
[1741681132914,267.44,123.49,123.43,0.05886339]
[1741681133119,32.74,123.53,123.44,32.74]
[1741681133419,32.74,123.53,123.45,2.3785]
[1741681133616,8.099,123.5,123.47,8.16038319]
[1741681133816,32.74,123.53,123.47,0.06028319]
[1741681134314,8.0989,123.5,123.47,0.06028319]
[1741681134511,32.74,123.53,123.47,0.06028319]
[1741681135610,21.7892944,123.52,123.47,0.06028319]
[1741681135811,32.74,123.53,123.47,0.06028319]
[1741681137123,8.0999,123.48,123.47,0.06028319]
[1741681138021,29.8891944,123.48,123.47,0.06028319]
[1741681139123,29.8891944,123.48,123.47,8.319e-05]
[1741681139517,8.0999,123.48,123.47,8.319e-05]
[1741681140718,0.06215116,123.49,123.47,8.319e-05]
[1741681142120,8.0999,123.48,123.47,8.319e-05]
[1741681142423,29.8891944,123.48,123.47,8.319e-05]
[1741681149526,8.0999,123.48,123.47,8.319e-05]
[1741681149730,8.16175116,123.49,123.47,8.319e-05]
[1741681149923,0.06215116,123.49,123.47,8.319e-05]
[1741681150821,8.16175116,123.49,123.47,8.319e-05]
[1741681151531,0.06215116,123.49,123.47,8.319e-05]
[1741681152520,8.0999,123.48,123.47,8.319e-05]
[1741681153024,8.1024,123.45,123.42,37.5158]
[1741681153228,54.4892944,123.48,123.42,37.5158]
[1741681153629,8.1022,123.45,123.42,37.5158]
[1741681154233,0.05234117,123.45,123.42,45.68108768]
[1741681154429,0.05234117,123.45,123.42,37.57738768]
[1741681154730,0.05234117,123.45,123.42,45.68098768]
[1741681155126,0.05234117,123.45,123.42,37.57738768]
[1741681155429,8.15424117,123.45,123.42,45.68088768]
[1741681155732,0.05234117,123.45,123.42,45.68088768]
[1741681155931,0.05234117,123.45,123.42,37.57738768]
[1741681156326,267.26,123.49,123.42,37.57738768]
[1741681156529,275.3595,123.49,123.45,8.1015]
[1741681157532,275.3595,123.49,123.46,0.05220687]
[1741681157830,267.26,123.49,123.46,0.05220687]
[1741681158134,8.0999,123.48,123.46,0.05220687]
[1741681158323,267.26,123.49,123.46,0.05220687]
[1741681158626,267.26,123.49,123.46,8.15320687]
[1741681158831,267.26,123.49,123.46,0.05220687]
[1741681159933,8.1005,123.47,123.46,0.05220687]
[1741681160635,8.1005,123.47,123.46,6.87e-06]
[1741681166735,32.7,123.47,123.39,8.1055]
[1741681166930,21.7892944,123.46,123.39,8.1055]
[1741681167531,21.7892944,123.46,123.38,14.9829]
[1741681167730,24.0437944,123.46,123.38,14.9829]
[1741681167937,0.06215345,123.43,123.41,0.05400614]
[1741681169035,8.1038,123.42,123.41,0.05400614]
[1741681171042,0.06215345,123.43,123.41,0.05400614]
[1741681171739,0.06215345,123.43,123.41,8.15800614]
[1741681172138,0.06215345,123.43,123.41,0.05400614]
[1741681172336,8.1038,123.42,123.41,0.05400614]
[1741681173842,0.06215345,123.43,123.41,0.05400614]
[1741681174440,8.16565345,123.43,123.41,0.05400614]
[1741681175038,8.16565345,123.43,123.41,8.15840614]
[1741681175239,0.06215345,123.43,123.41,0.05400614]
[1741681175940,8.1038,123.42,123.41,0.05400614]
[1741681176239,0.06215345,123.43,123.42,8.1038]
[1741681176445,13.61691667,123.47,123.41,0.05400614]
[1741681176643,313.59691667,123.49,123.4,32.72]
[1741681176843,8.1001,123.48,123.45,8.1015]
[1741681177039,313.59691667,123.49,123.39,13.61691667]
[1741681177239,313.59691667,123.49,123.4,32.72]
[1741681177440,321.69651667,123.49,123.45,8.1013]
[1741681177644,321.69651667,123.49,123.43,32.77327151]
[1741681177946,267.26,123.49,123.43,32.72]
[1741681178137,267.26,123.49,123.47,8.1005]
[1741681178543,45.03184429,123.53,123.46,32.72]
[1741681178945,45.03184429,123.53,123.48,0.05299442]
[1741681179139,45.03184429,123.53,123.49,32.72]
[1741681179441,275.4354,123.55,123.51,8.0974]
[1741681179646,275.4354,123.55,123.5,2.3999]
[1741681179846,267.34,123.55,123.5,2.3999]
[1741681180041,267.34,123.55,123.51,0.05545189]
[1741681180351,267.34,123.55,123.52,32.7]
[1741681181148,267.34,123.55,123.53,8.0962]
[1741681181845,267.34,123.55,123.54,8.096]
[1741681182042,45.03184429,123.56,123.54,8.096]
[1741681182440,45.03184429,123.56,123.54,8.15434998]
[1741681182848,45.03184429,123.56,123.54,0.05834998]
[1741681183248,135.09553288,123.58,123.54,0.05834998]
[1741681183450,32.7,123.6,123.54,0.05834998]
[1741681184148,8.0937,123.58,123.54,8.15394998]
[1741681184545,32.7,123.6,123.54,8.15424998]
[1741681185248,32.7,123.6,123.54,0.05834998]
[1741681185745,267.24,123.61,123.54,0.05834998]
[1741681186149,8.0944,123.57,123.54,8.15414998]
[1741681187344,267.24,123.61,123.55,32.68]
[1741681187550,2.2429,123.63,123.55,34.9102]
[1741681187741,2.2429,123.63,123.56,2.379]
[1741681187946,54.41793459,123.62,123.57,0.05906128]
[1741681188457,8.0933,123.58,123.57,0.05906128]
[1741681188751,32.68,123.62,123.57,0.05906128]
[1741681189248,23.12963459,123.66,123.57,0.05906128]
[1741681189448,8.0904,123.63,123.59,8.0927]
[1741681189653,32.68,123.65,123.58,35.1185]
[1741681189855,23.12963459,123.66,123.6,0.05225898]
[1741681190152,8.0913,123.62,123.6,0.05225898]
[1741681190354,32.68,123.65,123.6,0.05225898]
[1741681190550,8.0914,123.61,123.6,0.05225898]
[1741681191254,32.68,123.65,123.6,0.05225898]
[1741681191851,8.0904,123.63,123.6,0.05225898]
[1741681192356,54.41793459,123.66,123.6,0.05225898]
[1741681192555,8.0913,123.62,123.6,0.05225898]
[1741681192751,54.41793459,123.66,123.6,0.05225898]
[1741681193348,267.18,123.67,123.6,0.05225898]
[1741681193554,8.0892,123.65,123.62,8.0907]
[1741681193951,8.0896,123.64,123.61,32.68]
[1741681194250,8.0896,123.64,123.62,0.05670493]
[1741681195056,267.18,123.67,123.62,0.05670493]
[1741681195255,267.18,123.67,123.62,4.70770493]
[1741681196055,267.18,123.67,123.62,2.43460493]
[1741681196056,299.84,123.67,123.62,2.43460493]
[1741681196252,8.0901,123.63,123.62,2.43460493]
[1741681196446,8.0901,123.63,123.62,0.05670493]
[1741681196851,8.0927,123.59,123.58,2.4385]
[1741681197047,54.39793459,123.64,123.58,2.4385]
[1741681197758,8.0931,123.59,123.57,2.3779]
[1741681198057,0.05136923,123.59,123.57,0.06051929]
[1741681198458,8.0933,123.58,123.57,0.06051929]
[1741681199359,40.7533,123.58,123.57,0.06051929]
[1741681200357,40.7533,123.58,123.57,1.929e-05]
[1741681200858,8.0973,123.52,123.48,32.66]
[1741681201060,55.08963459,123.58,123.48,37.1544]
[1741681201462,8.0966,123.53,123.48,37.1544]
[1741681201760,8.0966,123.53,123.48,45.2541]
[1741681202059,0.05553325,123.52,123.49,0.05291703]
[1741681202560,8.15293325,123.52,123.49,0.05291703]
[1741681202759,0.05553325,123.52,123.49,0.05291703]
[1741681203454,0.05553325,123.52,123.49,8.15171703]
[1741681203654,0.05553325,123.52,123.49,0.05291703]
[1741681204059,0.05553325,123.52,123.49,8.15181703]
[1741681204658,0.05553325,123.52,123.49,0.05291703]
[1741681206260,0.05553325,123.52,123.51,8.0979]
[1741681207060,0.05553325,123.52,123.5,8.0985]
[1741681207463,0.05553325,123.52,123.5,8.0981]
[1741681207761,0.05553325,123.52,123.49,0.05291703]
[1741681207960,0.05553325,123.52,123.51,8.0979]
[1741681208463,0.05553325,123.52,123.49,0.05291703]
[1741681209157,2.1554,123.58,123.49,0.05291703]
[1741681209357,267.181,123.59,123.5,21.73793459]
[1741681209358,266.98,123.59,123.5,21.73793459]
[1741681209558,275.0729,123.59,123.56,8.0943]
[1741681209759,56.89043459,123.64,123.54,32.66]
[1741681209960,56.89043459,123.64,123.55,2.1865]
[1741681210159,2.2864,123.64,123.55,4.3957]
[1741681210359,267.08,123.65,123.58,0.05840604]
[1741681210556,0.05700222,123.61,123.59,13.56933914]
[1741681210760,267.08,123.65,123.62,8.0907]
[1741681210963,267.08,123.65,123.61,32.66]
[1741681211266,267.08,123.65,123.62,8.0906]
[1741681211867,267.08,123.65,123.62,8.14663854]
[1741681212166,103.99006587,123.69,123.62,0.05603854]
[1741681212465,112.07656587,123.69,123.64,8.089]
[1741681212655,103.99006587,123.69,123.63,2.211]
[1741681213166,8.0881,123.66,123.65,0.06141374]
[1741681214164,8.087,123.68,123.65,0.06141374]
[1741681214667,32.66,123.7,123.65,0.06141374]
[1741681215569,288.71432265,123.71,123.65,0.06141374]
[1741681215870,321.37432265,123.71,123.65,0.06141374]
[1741681216059,8.0863,123.69,123.65,8.14971374]
[1741681216258,299.68,123.71,123.65,0.06141374]
[1741681217264,8.0866,123.69,123.65,0.06141374]
[1741681217472,299.68,123.71,123.65,8.15011374]
[1741681218673,8.0873,123.68,123.65,0.06141374]
[1741681219471,8.0875,123.67,123.65,0.06141374]
[1741681221072,32.64,123.68,123.65,0.06141374]
[1741681222070,21.69432265,123.67,123.6,2.253]
[1741681222271,8.0884,123.66,123.62,8.0906]
[1741681222569,32.64,123.68,123.6,34.893]
[1741681223162,0.06201364,123.65,123.63,0.05826156]
[1741681223659,8.0894,123.64,123.63,0.05826156]
[1741681227974,8.15091364,123.65,123.63,0.05826156]
[1741681228178,0.06201364,123.65,123.63,0.05826156]
[1741681228974,8.0894,123.64,123.63,0.05826156]
[1741681231576,0.06201364,123.65,123.64,8.0894]
[1741681232179,266.9,123.76,123.64,35.06]
[1741681232471,266.9,123.76,123.66,13.5467899]
[1741681232677,13.5467899,123.75,123.67,32.64]
[1741681233076,8.0839,123.73,123.67,32.64]
[1741681233274,13.5467899,123.73,123.7,0.05692409]
[1741681233577,46.1867899,123.75,123.7,0.05692409]
[1741681234174,13.5467899,123.73,123.7,0.05692409]
[1741681234470,54.3267395,123.72,123.61,37.2307]
[1741681234680,21.6867395,123.69,123.61,37.2307]
[1741681234878,32.64,123.68,123.61,37.2307]
[1741681235271,21.6867395,123.67,123.61,35.0042]
[1741681235476,21.6867395,123.67,123.61,2.3642]
[1741681235678,0.05866308,123.65,123.63,0.0583307]
[1741681235980,0.05866308,123.65,123.63,8.1479307]
[1741681236182,0.05866308,123.65,123.63,0.0583307]
[1741681236581,0.05866308,123.65,123.63,8.1480307]
[1741681236884,0.05866308,123.65,123.63,0.0583307]
[1741681237777,0.05866308,123.65,123.64,8.0894]
[1741681239280,0.05866308,123.65,123.63,0.0583307]
[1741681239878,8.0894,123.64,123.63,0.0583307]
[1741681240582,0.05866308,123.65,123.63,0.0583307]
[1741681241178,8.0894,123.64,123.63,0.0583307]
[1741681241382,0.05866308,123.65,123.63,0.0583307]
[1741681242683,0.05866308,123.65,123.64,8.0894]
[1741681242882,54.3267395,123.73,123.63,0.0583307]
[1741681243081,267.1258,123.75,123.64,21.6867395]
[1741681243386,266.86,123.75,123.65,34.8094]
[1741681243979,266.86,123.75,123.69,0.05765963]
[1741681244378,266.86,123.75,123.72,8.0838]
[1741681244575,71.38460408,123.77,123.71,32.62]
[1741681244777,71.38460408,123.77,123.71,32.68077346]
[1741681244976,79.46600408,123.77,123.73,8.083]
[1741681245183,71.38460408,123.77,123.71,32.62]
[1741681245577,21.6867395,123.77,123.74,0.06180109]
[1741681245779,32.62,123.76,123.68,32.62]
[1741681245986,8.0855,123.7,123.68,32.62]
[1741681246184,21.6867395,123.73,123.68,32.62]
[1741681246381,54.3067395,123.73,123.65,34.7894]
[1741681246582,8.0857,123.7,123.65,42.8777]
[1741681246982,0.05694012,123.69,123.66,0.06095236]
[1741681247185,0.05694012,123.69,123.66,8.14845236]
[1741681247785,0.05694012,123.69,123.66,0.06095236]
[1741681249687,34.7838,123.76,123.66,21.74769186]
[1741681249888,2.1638,123.76,123.66,21.6867395]
[1741681250187,34.7838,123.76,123.66,21.6867395]
[1741681250385,8.0826,123.75,123.71,8.0845]
[1741681250584,34.7838,123.76,123.71,8.0845]
[1741681250885,34.7838,123.76,123.69,32.62]
[1741681251080,34.7838,123.76,123.72,0.05850723]
[1741681251480,8.0835,123.73,123.72,0.05850723]
[1741681252079,34.7838,123.76,123.72,0.05850723]
[1741681252989,288.5467395,123.81,123.72,0.05850723]
[1741681253189,8.0799,123.79,123.72,32.62]
[1741681253383,8.0799,123.79,123.75,0.05697419]
[1741681253984,8.0807,123.78,123.75,0.05697419]
[1741681254388,35.4696,123.8,123.75,0.05697419]
[1741681254589,8.0804,123.78,123.75,8.13877419]
[1741681254790,35.4696,123.8,123.75,8.13877419]
[1741681254991,34.7761,123.8,123.75,8.13877419]
[1741681255188,266.86,123.81,123.75,32.67697419]
[1741681255695,266.86,123.81,123.79,8.0794]
[1741681256193,266.86,123.81,123.79,0.06214019]
[1741681256694,8.0789,123.8,123.79,0.06214019]
[1741681257595,266.86,123.81,123.79,0.06214019]
[1741681257795,2.3549,123.85,123.8,8.0789]
[1741681257990,34.9549,123.85,123.79,0.06214019]
[1741681258396,2.3549,123.85,123.79,0.06214019]
[1741681258597,32.6,123.86,123.79,0.06214019]
[1741681258898,289.1503395,123.87,123.78,32.6]
[1741681259093,32.6,123.86,123.81,0.06026349]
[1741681260496,321.7503395,123.87,123.81,0.06026349]
[1741681261097,320.9467395,123.87,123.81,0.06026349]
[1741681261297,8.0767,123.84,123.81,0.06026349]
[1741681261498,320.9467395,123.87,123.81,0.06026349]
[1741681261699,266.66,123.87,123.81,32.66026349]
[1741681261899,274.7348,123.87,123.81,32.66026349]
[1741681262101,274.7348,123.87,123.83,8.0766]
[1741681262397,8.0732,123.89,123.84,32.6]
[1741681262593,56.5781395,123.92,123.84,32.6565654]
[1741681262792,21.6867395,123.9,123.84,0.0565654]
[1741681263006,21.6867395,123.88,123.79,4.5591]
[1741681263203,2.2914,123.87,123.86,3.233e-05]
[1741681263399,2.2914,123.87,123.79,4.5591]
[1741681263599,32.58,123.86,123.79,4.5591]
[1741681264202,32.58,123.86,123.81,8.0779]
[1741681264401,0.05212882,123.84,123.81,0.05128375]
[1741681265199,8.12872882,123.84,123.81,0.05128375]
[1741681265703,8.0771,123.83,123.81,0.05128375]
[1741681265902,0.05212882,123.84,123.81,0.05128375]
[1741681266693,0.05212882,123.84,123.82,8.0774]
[1741681266902,0.05212882,123.84,123.81,0.05128375]
[1741681267205,21.6867395,123.92,123.81,32.63128375]
[1741681267411,267.6267,123.93,123.82,23.9577395]
[1741681267599,32.58,123.92,123.82,23.9577395]
[1741681267800,8.0724,123.91,123.87,8.074]
[1741681268005,32.58,123.92,123.85,32.58]
[1741681268409,32.58,123.92,123.88,0.05437321]
[1741681268808,8.0719,123.91,123.88,0.05437321]
[1741681269004,32.58,123.92,123.88,0.05437321]
[1741681269304,21.6867395,123.92,123.88,0.05437321]
[1741681269506,8.0731,123.89,123.88,0.05437321]
[1741681269908,8.0759,123.85,123.82,10.3484]
[1741681270106,32.58,123.91,123.82,2.271]
[1741681271016,8.0749,123.87,123.85,0.06177912]
[1741681271210,0.06018809,123.88,123.85,0.06177912]
[1741681271912,0.06018809,123.88,123.86,8.0747]
[1741681272113,0.06018809,123.88,123.85,0.06177912]
[1741681272805,54.32692759,123.88,123.85,0.06177912]
[1741681273406,32.64018809,123.88,123.85,0.06177912]
[1741681273612,8.075,123.86,123.85,0.06177912]
[1741681274515,21.6867395,123.86,123.77,2.2554]
[1741681274711,21.6867395,123.84,123.77,10.336]
[1741681275020,21.6867395,123.84,123.77,2.2554]
[1741681275219,32.8,123.85,123.77,2.2554]
[1741681275418,32.8,123.85,123.78,32.84]
[1741681275916,0.05209221,123.82,123.8,0.05156173]
[1741681277425,0.05209221,123.82,123.81,8.0783]
[1741681277620,0.05209221,123.82,123.8,0.05156173]
[1741681278917,0.05209221,123.82,123.8,8.13016173]
[1741681279324,0.05209221,123.82,123.8,0.05156173]
[1741681279523,0.05209221,123.82,123.81,8.0783]
[1741681279714,1.0757,123.91,123.8,0.05156173]
[1741681279715,21.6867395,123.9,123.8,0.05156173]
[1741681279921,32.78,123.89,123.78,54.5267395]
[1741681280123,40.8339,123.88,123.84,8.0757]
[1741681280423,32.76,123.88,123.78,54.5267395]
[1741681280920,32.76,123.88,123.82,0.051843]
[1741681281126,0.05685423,123.84,123.82,0.051843]
[1741681281324,0.05685423,123.84,123.83,8.0763]
[1741681282128,0.05685423,123.84,123.82,0.051843]
[1741681282730,0.05685423,123.84,123.82,8.129243]
[1741681282925,0.05685423,123.84,123.82,0.051843]
[1741681283125,0.05685423,123.84,123.82,8.129143]
[1741681283328,0.05685423,123.84,123.82,0.051843]
[1741681284528,8.13325423,123.84,123.82,0.051843]
[1741681285132,8.077,123.83,123.82,0.051843]
[1741681285330,0.05685423,123.84,123.82,0.051843]
[1741681285630,8.077,123.83,123.82,0.051843]
[1741681286830,0.05685423,123.84,123.82,0.051843]
[1741681287736,8.13355423,123.84,123.82,0.051843]
[1741681288029,0.05685423,123.84,123.82,0.051843]
[1741681288828,8.077,123.83,123.82,0.051843]
[1741681289929,8.13355423,123.84,123.82,0.051843]
[1741681290430,0.05685423,123.84,123.75,4.5535]
[1741681290631,54.7267395,123.85,123.75,4.5535]
[1741681291427,2.3548,123.86,123.77,21.6867395]
[1741681291632,0.05810896,123.81,123.79,0.06118022]
[1741681291829,2.3548,123.86,123.79,0.06118022]
[1741681292227,10.4304,123.86,123.79,0.06118022]
[1741681292431,2.3548,123.86,123.79,0.06118022]
[1741681292729,21.6867395,123.85,123.79,0.06118022]
[1741681292934,33.04,123.84,123.79,0.06118022]
[1741681293136,0.05921354,123.83,123.79,0.06118022]
[1741681296133,8.0784,123.81,123.79,0.06118022]
[1741681296729,0.05921354,123.83,123.79,0.06118022]
[1741681297533,8.0789,123.8,123.79,0.06118022]
[1741681298134,8.0787,123.81,123.79,0.06118022]
[1741681298728,8.0789,123.8,123.79,0.06118022]
[1741681299035,0.05921354,123.83,123.79,0.06118022]
[1741681300531,0.05921354,123.83,123.82,8.0776]
[1741681300837,0.05921354,123.83,123.79,0.06118022]
[1741681304938,8.0789,123.8,123.79,0.06118022]
[1741681306038,41.1786,123.81,123.79,0.06118022]
[1741681306339,33.1,123.81,123.79,0.06118022]
[1741681306739,8.0789,123.8,123.79,0.06118022]
[1741681307442,41.1787,123.81,123.79,0.06118022]
[1741681307643,33.1,123.81,123.79,0.06118022]
[1741681308544,41.1786,123.81,123.79,0.06118022]
[1741681309845,33.1,123.81,123.79,0.06118022]
[1741681310038,8.0789,123.8,123.79,0.06118022]
[1741681311146,8.0817,123.76,123.69,40.53396487]
[1741681311334,33.08,123.78,123.7,4.4873]
[1741681311534,54.7667395,123.78,123.7,4.4873]
[1741681311739,8.0833,123.74,123.7,4.4873]
[1741681312044,33.2,123.75,123.7,4.4873]
[1741681312344,0.0539392,123.74,123.71,0.05179622]
[1741681313847,0.0539392,123.74,123.73,8.0835]
[1741681314244,0.0539392,123.74,123.71,0.05179622]
[1741681314445,0.0539392,123.74,123.72,8.084]
[1741681314648,0.0539392,123.74,123.71,0.05179622]
[1741681315042,8.1371392,123.74,123.71,8.13629622]
[1741681315546,0.0539392,123.74,123.71,0.05179622]
[1741681315748,8.0835,123.73,123.71,0.05179622]
[1741681316750,8.0842,123.72,123.71,0.05179622]
[1741681318956,8.0837,123.73,123.71,0.05179622]
[1741681319554,0.0539392,123.74,123.71,0.05179622]
[1741681319750,33.12,123.73,123.67,2.357]
[1741681320156,41.2038,123.73,123.69,8.0856]
[1741681320553,33.12,123.73,123.67,2.357]
[1741681320748,41.1845,123.72,123.68,8.0864]
[1741681321057,0.05227388,123.71,123.69,0.05750001]
[1741681324156,8.0855,123.7,123.69,0.05750001]
[1741681325462,8.0869,123.68,123.65,2.278]
[1741681326162,54.7867395,123.72,123.65,2.278]
[1741681326360,54.7867395,123.72,123.66,8.0874]
[1741681326764,0.05630818,123.7,123.67,0.06136899]
[1741681326962,8.14210818,123.7,123.67,0.06136899]
[1741681327359,0.05630818,123.7,123.67,0.06136899]
[1741681327560,0.05630818,123.7,123.67,8.14846899]
[1741681328064,8.14200818,123.7,123.67,8.14846899]
[1741681328662,0.05630818,123.7,123.67,8.14846899]
[1741681328863,0.05630818,123.7,123.68,8.0867]
[1741681329563,0.05630818,123.7,123.67,0.06136899]
[1741681329762,8.14240818,123.7,123.67,0.06136899]
[1741681329963,0.05630818,123.7,123.67,0.06136899]
[1741681330364,8.0865,123.69,123.67,0.06136899]
[1741681330865,0.05630818,123.7,123.67,0.06136899]
[1741681331061,2.1866,123.77,123.67,32.84136899]
[1741681331265,21.6867395,123.78,123.68,23.9548395]
[1741681331266,54.4867395,123.78,123.68,23.9548395]
[1741681331460,54.4867395,123.78,123.69,2.3456]
[1741681331661,21.6867395,123.76,123.69,2.3456]
[1741681331863,21.6867395,123.76,123.7,8.0851]
[1741681332065,8.0832,123.74,123.7,8.0851]
[1741681332367,0.05120886,123.74,123.72,0.05839152]
[1741681334471,8.13410886,123.74,123.72,0.05839152]
[1741681334669,0.05120886,123.74,123.72,0.05839152]
[1741681334865,0.05120886,123.74,123.73,8.0835]
[1741681335982,8.13410886,123.74,123.72,0.05839152]
[1741681336478,0.05120886,123.74,123.72,0.05839152]
[1741681336677,8.0835,123.73,123.72,0.05839152]
[1741681337274,0.05120886,123.74,123.72,0.05839152]
[1741681338882,8.0835,123.73,123.72,0.05839152]
[1741681339176,0.05120886,123.74,123.72,0.05839152]
[1741681340474,0.05120886,123.74,123.73,8.0835]
[1741681340678,266.54,123.79,123.73,2.2705]
[1741681340879,21.67127129,123.81,123.73,2.2705]
[1741681341277,3.4828,123.85,123.73,4.6152]
[1741681341477,8.0767,123.84,123.78,8.0799]
[1741681341680,8.0767,123.84,123.77,32.8]
[1741681341882,0.0568489,123.82,123.8,0.05414647]
[1741681342480,45.03184429,123.86,123.8,32.83414647]
[1741681342787,45.03184429,123.86,123.81,10.3484]
[1741681342983,21.67127129,123.89,123.81,10.3484]
[1741681343180,32.74,123.88,123.82,8.0776]
[1741681343584,0.05700617,123.86,123.84,0.05841152]
[1741681346587,8.0757,123.85,123.84,0.05841152]
[1741681355798,8.0757,123.85,123.84,1.152e-05]
[1741681356294,21.60396571,123.85,123.84,1.152e-05]
[1741681360097,54.20396571,123.85,123.84,1.152e-05]
[1741681361197,8.0757,123.85,123.84,1.152e-05]
[1741681362298,21.60396571,123.85,123.84,1.152e-05]
[1741681364994,32.65700617,123.86,123.84,1.152e-05]
[1741681365494,8.0757,123.85,123.84,1.152e-05]
[1741681365692,21.60396571,123.85,123.84,1.152e-05]